bitfinex/quotes_SOLUSD_20240816
["timestamp","ask_amount","ask_price","bid_price","bid_amount"]
[1723815920913,7.0867,141.11,141.06,7.0891]
[1723815921078,17.83779,141.15,141.04,24.8147]
[1723815921079,0.12549,141.14,141.04,24.8147]
[1723815921282,7.0876,141.09,141.04,24.8147]
[1723815921477,7.0882,141.08,141.04,17.725]
[1723815921682,17.715,141.13,141.03,37.6978]
[1723815921683,7.0888,141.07,141.03,37.6978]
[1723815921903,17.715,141.13,141.03,48.3332]
[1723815922086,20.0,141.12,141.03,30.6073]
[1723815922284,20.12549,141.14,141.03,30.6073]
[1723815922483,37.83899,141.14,141.04,45.25098]
[1723815922681,7.0877,141.09,141.04,7.34098]
[1723815922905,7.0872,141.1,141.05,7.0893]
[1723815923300,7.0877,141.09,141.04,25.06568]
[1723815923725,7.0877,141.09,141.04,24.94019]
[1723815924099,29.8701,141.17,141.06,17.7219]
[1723815924290,12.1606,141.17,141.07,0.25098]
[1723815924817,7.085,141.15,141.11,17.7156]
[1723815924994,7.0857,141.13,141.09,7.0876]
[1723815925190,12.1606,141.17,141.03,30.6073]
[1723815925497,7.0878,141.09,141.04,24.8149]
[1723815925895,7.0878,141.09,141.04,407.2149]
[1723815926215,0.12549,141.15,141.04,382.4]
[1723815926433,7.0861,141.12,141.08,17.7195]
[1723815926623,7.0876,141.1,141.05,7.0893]
[1723815926935,0.37647,141.16,141.05,7.0893]
[1723815926936,7.0868,141.11,141.07,7.0885]
[1723815927092,7.0862,141.12,141.07,7.0885]
[1723815927430,7.0875,141.1,141.05,17.7237]
[1723815927719,17.7123,141.15,141.06,0.12549]
[1723815927899,17.7082,141.18,141.07,0.12549]
[1723815928091,17.711,141.16,141.07,7.0886]
[1723815928289,7.0872,141.1,141.06,0.12549]
[1723815928524,47.5813,141.17,141.04,382.4]
[1723815928525,7.0865,141.12,141.07,7.0882]
[1723815928702,7.0862,141.12,141.08,7.0881]
[1723815929024,65.291,141.17,141.04,389.4901]
[1723815929025,7.0881,141.08,141.04,389.4901]
[1723815929324,7.0877,141.09,141.05,7.0895]
[1723815929491,0.12549,141.12,141.05,7.0895]
[1723815929693,20.25098,141.12,141.05,7.0895]
[1723815929897,20.25098,141.12,141.04,407.2148]
[1723815930105,0.12549,141.1,141.04,24.8148]
[1723815930313,7.0877,141.09,141.04,24.8148]
[1723815930994,7.0873,141.1,141.05,8.50495285]
[1723815931215,7.0865,141.12,141.07,7.0882]
[1723815931414,17.711,141.16,141.06,17.7221]
[1723815931623,7.0868,141.11,141.06,24.8112]
[1723815931812,7.0865,141.12,141.07,7.0886]
[1723815932146,17.7138,141.14,141.05,0.12549]
[1723815932438,7.0872,141.1,141.05,24.8133]
[1723815932613,7.0872,141.1,141.06,7.21459]
[1723815933195,7.0872,141.1,141.06,7.0891]
[1723815933420,7.0867,141.11,141.06,7.0891]
[1723815933815,7.0867,141.11,141.07,7.0884]
[1723815934217,29.8698,141.17,141.07,17.721]
[1723815934457,29.8698,141.17,141.09,24.8059]
[1723815934595,7.0858,141.13,141.09,24.8059]
[1723815935750,12.1606,141.17,141.11,17.7162]
[1723815935921,7.0832,141.18,141.12,1.41704859]
[1723815936130,7.0832,141.18,141.13,24.7991]
[1723815936442,12.1837,141.21,141.14,8.50196538]
[1723815936443,7.0826,141.19,141.14,8.50196538]
[1723815937146,12.1837,141.21,141.14,8.50196538]
[1723815937147,17.7022,141.23,141.16,7.084]
[1723815937302,17.7022,141.23,141.14,382.4]
[1723815937950,7.0822,141.2,141.15,7.0841]
[1723815938103,12.6134,141.29,141.21,7.0814]
[1723815938306,12.6134,141.29,141.21,382.4]
[1723815938517,7.0777,141.29,141.22,17.95358]
[1723815938839,7.0767,141.31,141.24,17.6993]
[1723815939004,7.0767,141.31,141.25,0.25098]
[1723815939643,14.42959402,141.35,141.29,7.0775]
[1723815939954,7.0751,141.35,141.3,0.12549]
[1723815940114,7.0757,141.33,141.28,24.7724]
[1723815940621,12.8996,141.37,141.25,0.25098]
[1723815940826,7.0761,141.32,141.27,7.0786]
[1723815941137,7.0755,141.34,141.28,7.20339]
[1723815941445,7.0741,141.36,141.29,17.81859]
[1723815941617,7.0746,141.35,141.3,0.12549]
[1723815941824,7.0757,141.33,141.26,17.6976]
[1723815942031,7.0757,141.33,141.27,0.25098]
[1723815942213,7.0766,141.31,141.26,24.7763]
[1723815942564,7.077,141.31,141.26,17.6976]
[1723815942732,17.6874,141.35,141.23,30.639]
[1723815942949,20.0,141.34,141.2,30.4007]
[1723815943115,7.079,141.27,141.22,7.0811]
[1723815943842,0.12549,141.31,141.24,17.7001]
[1723815944150,0.12549,141.31,141.2,30.4007]
[1723815944151,20.37647,141.31,141.2,30.4007]
[1723815944453,65.50196,141.31,141.21,1.4127723]
[1723815944611,7.0797,141.25,141.21,1.4127723]
[1723815944944,7.0797,141.25,141.2,37.4824]
[1723815945256,7.0806,141.23,141.19,382.4]
[1723815945439,35.3871,141.3,141.19,382.4]
[1723815945440,33.81099826,141.32,141.21,17.704]
[1723815945760,20.12549,141.31,141.21,17.704]
[1723815946056,7.0791,141.26,141.21,24.7855]
[1723815946345,20.12549,141.31,141.21,17.704]
[1723815946346,7.0796,141.25,141.21,17.704]
[1723815946607,7.0792,141.26,141.21,24.7855]
[1723815946773,7.0796,141.25,141.21,24.7855]
[1723815947047,7.0792,141.26,141.21,24.7855]
[1723815947533,7.0787,141.27,141.21,17.704]
[1723815947732,20.0,141.26,141.22,7.20649]
[1723815947912,20.0,141.26,141.21,17.704]
[1723815947913,27.0792,141.26,141.21,407.1855]
[1723815948749,7.0796,141.25,141.21,407.1855]
[1723815949054,7.0796,141.25,141.21,400.104]
[1723815949266,20.0,141.24,141.21,382.4]
[1723815949560,20.12549,141.26,141.21,382.4]
[1723815949561,7.0807,141.23,141.21,382.4]
[1723815949845,7.0811,141.22,141.21,382.4]
[1723815950216,27.0811,141.22,141.21,382.4]
[1723815950830,27.20659,141.22,141.21,382.4]
[1723815951665,20.0,141.22,141.21,382.4]
[1723815951974,7.0806,141.23,141.21,382.4]
[1723815952344,7.0802,141.24,141.21,382.4]
[1723815952871,7.0807,141.23,141.21,382.4]
[1723815953072,7.0811,141.22,141.21,382.4]
[1723815953938,7.0807,141.23,141.18,24.7902]
[1723815954138,7.08,141.25,141.18,17.7072]
[1723815954473,0.12549,141.23,141.15,30.3864]
[1723815954631,0.12549,141.23,141.17,7.0836]
[1723815954833,7.0815,141.22,141.17,7.0836]
[1723815955743,7.0841,141.16,141.12,17.7146]
[1723815955930,7.0841,141.16,141.12,400.1146]
[1723815955931,7.0842,141.16,141.12,400.1146]
[1723815956544,0.12549,141.18,141.12,382.4]
[1723815956877,7.0848,141.15,141.12,382.4]
[1723815957228,65.25098,141.18,141.12,382.4]
[1723815957229,7.0843,141.16,141.12,382.4]
[1723815957433,20.0,141.15,141.12,382.4]
[1723815957659,20.25098,141.18,141.12,382.4]
[1723815957868,7.0842,141.16,141.12,389.4859]
[1723815958060,17.7099,141.17,141.12,382.4]
[1723815958257,0.25098,141.15,141.06,33.0712]
[1723815958539,7.088,141.09,141.06,33.0712]
[1723815958763,7.0867,141.11,141.06,422.5602]
[1723815959044,7.0872,141.1,141.06,422.5602]
[1723815959679,7.0863,141.12,141.06,415.4712]
[1723815959883,0.12549,141.13,141.08,7.0877]
[1723815960238,7.0862,141.12,141.07,24.8092]
[1723815960442,17.83809,141.15,141.06,415.4712]
[1723815960680,20.0,141.16,141.1,7.0871]
[1723815960848,7.0852,141.14,141.09,7.0875]
[1723815961053,7.0852,141.14,141.1,7.0871]
[1723815961592,7.0857,141.13,141.09,7.0876]
[1723815961773,7.0872,141.1,141.06,415.4712]
[1723815962194,7.0885,141.08,141.06,382.4]
[1723815962482,7.0885,141.08,141.02,17.7272]
[1723815962483,7.0887,141.07,141.02,407.2182]
[1723815962859,7.0892,141.06,141.02,407.2182]
[1723815963063,7.0896,141.05,141.02,17.7272]
[1723815963370,7.0892,141.06,141.02,17.7272]
[1723815964276,13.02229,141.09,141.0,421.2926536]
[1723815964453,7.089,141.07,141.01,17.7287]
[1723815964662,7.089,141.07,141.02,7.0907]
[1723815964841,0.12549,141.09,141.0,414.2006536]
[1723815965045,0.12549,141.11,141.04,7.09]
[1723815965268,7.0877,141.09,141.05,7.0894]
[1723815965480,7.0877,141.09,141.05,7.0895]
[1723815966072,7.0872,141.1,141.06,7.089]
[1723815966411,17.711,141.16,141.07,17.7212]
[1723815966562,17.7136,141.14,141.07,382.4]
[1723815966759,7.0873,141.1,141.07,382.4]
[1723815966975,51.01475631,141.18,141.06,382.4]
[1723815967193,51.01475631,141.18,140.46,0.21322488]
[1723815967194,17.716,141.12,141.02,7.0908]
[1723815967358,7.0892,141.06,141.02,7.091]
[1723815967554,17.7185,141.1,141.01,400.1284]
[1723815967555,7.0898,141.05,141.01,400.1284]
[1723815967768,7.0902,141.04,141.01,382.4]
[1723815968089,0.12549,141.05,141.01,382.4]
[1723815968090,7.0907,141.03,141.01,382.4]
[1723815968259,7.21529,141.05,141.01,382.4]
[1723815968464,7.0898,141.05,141.01,382.4]
[1723815968906,0.12549,141.06,141.01,382.4]
[1723815969191,7.0906,141.04,141.01,382.4]
[1723815969869,17.7211,141.08,141.01,382.4]
[1723815969870,7.0883,141.08,141.01,382.4]
[1723815970069,30.5419,141.11,141.02,17.7273]
[1723815970265,20.0,141.1,141.02,17.7273]
[1723815970466,20.0,141.1,141.01,389.4915]
[1723815970686,7.0905,141.04,141.01,382.4]
[1723815970863,17.7223,141.07,141.01,382.4]
[1723815971060,20.0,141.1,141.01,382.4]
[1723815971061,7.0911,141.02,141.01,382.4]
[1723815971291,27.21659,141.02,141.01,382.4]
[1723815971759,7.0905,141.04,141.0,0.8698536]
[1723815971958,12.8247,141.11,141.0,0.8698536]
[1723815972173,7.0895,141.06,141.01,7.0916]
[1723815972385,20.0,141.1,141.0,18.5997536]
[1723815972579,7.0895,141.06,141.01,7.0916]
[1723815972776,7.0898,141.05,141.01,0.12549]
[1723815972982,7.0905,141.04,141.0,18.5997536]
[1723815973162,17.7197,141.09,141.0,25.6917536]
[1723815973362,27.0883,141.08,141.02,17.7274]
[1723815973603,12.8247,141.11,141.03,0.12549]
[1723815973817,7.0877,141.09,141.05,7.0896]
[1723815974092,7.0883,141.08,141.04,24.8148]
[1723815974268,7.0877,141.09,141.05,0.12549]
[1723815974465,12.9189,141.16,141.04,35.4504]
[1723815974666,12.9189,141.16,141.05,32.02578]
[1723815974667,7.0856,141.13,141.05,32.02578]
[1723815974872,12.9189,141.16,141.07,7.0886]
[1723815975086,7.0862,141.12,141.07,7.0886]
[1723815975389,7.0856,141.13,141.07,17.7207]
[1723815975578,7.085,141.15,141.09,7.0871]
[1723815975776,20.0031,141.16,141.09,17.7183]
[1723815975965,7.0827,141.19,141.14,7.0851]
[1723815976165,7.0833,141.18,141.13,24.7996]
[1723815976389,30.5038,141.24,141.13,17.7141]
[1723815976595,7.0821,141.2,141.15,7.0845]
[1723815977175,12.803,141.24,141.16,0.12549]
[1723815977520,32.0907,141.29,141.16,0.12549]
[1723815977521,7.0799,141.25,141.19,7.0825]
[1723815977691,30.4983,141.29,141.19,382.4]
[1723815978163,7.0821,141.2,141.19,382.4]
[1723815978369,7.0817,141.21,141.19,382.4]
[1723815978680,7.0821,141.2,141.19,382.4]
[1723815978875,7.0816,141.22,141.19,382.4]
[1723815979083,27.0816,141.21,141.19,382.4]
[1723815979272,7.0827,141.19,141.14,32.2691]
[1723815979476,7.20779,141.2,141.14,39.3538]
[1723815979677,7.20779,141.2,141.15,7.0844]
[1723815980091,7.0817,141.21,141.16,7.0841]
[1723815980397,12.803,141.29,141.18,7.0826]
[1723815980595,12.803,141.29,141.18,389.4826]
[1723815980794,12.803,141.29,141.18,382.4]
[1723815980795,17.6965,141.28,141.18,382.4]
[1723815981627,17.6988,141.26,141.18,382.4]
[1723815981812,65.50196,141.25,141.18,382.4]
[1723815982100,7.0816,141.21,141.18,382.4]
[1723815982305,0.12549,141.22,141.14,432.3817]
[1723815982595,7.0826,141.19,141.14,439.4667]
[1723815982899,0.12549,141.19,141.14,432.3817]
[1723815983208,20.0,141.23,141.14,432.3817]
[1723815983407,0.12549,141.15,141.1,382.4]
[1723815983580,0.12549,141.15,141.05,32.1906]
[1723815983581,17.7138,141.14,141.05,414.5906]
[1723815983779,0.12549,141.12,141.06,7.089]
[1723815984491,7.0868,141.11,141.05,421.6802]
[1723815984680,0.12549,141.12,141.06,7.0886]
[1723815984681,7.21169,141.12,141.06,7.0886]
[1723815985193,7.0867,141.11,141.06,7.0886]
[1723815985617,7.0877,141.09,141.05,414.5906]
[1723815985772,7.0877,141.09,141.04,382.4]
[1723815985978,7.0882,141.08,141.04,382.4]
[1723815986198,7.0887,141.07,141.04,382.4]
[1723815986783,0.12549,141.12,141.04,382.4]
[1723815986985,20.12549,141.13,141.11,7.0865]
[1723815987213,7.0847,141.15,141.1,7.087]
[1723815987383,20.0,141.16,141.07,17.7216]
[1723815987705,20.0,141.16,141.08,0.12549]
[1723815987910,20.0,141.18,141.08,0.12549]
[1723815988124,7.0846,141.15,141.09,7.0876]
[1723815988278,7.084,141.17,141.12,7.0861]
[1723815988481,7.0832,141.18,141.13,7.0856]
[1723815988821,402.44702992,141.51,141.14,0.12549]
[1723815988822,13.1761,141.24,141.14,0.12549]
[1723815989026,13.1761,141.24,141.14,382.52549]
[1723815989381,13.1761,141.24,141.17,7.0836]
[1723815989610,13.1761,141.24,141.18,7.0829]
[1723815989611,7.0807,141.23,141.18,7.0829]
[1723815989812,7.0802,141.24,141.18,7.0829]
[1723815990014,7.0802,141.24,141.18,389.4829]
[1723815990339,17.6978,141.27,141.18,382.4]
[1723815990818,7.0817,141.21,141.18,382.4]
[1723815990981,7.0811,141.23,141.18,389.4828]
[1723815991816,20.11660239,141.29,141.19,17.7066]
[1723815992197,20.11660239,141.29,141.2,0.25098]
[1723815992393,13.2975,141.34,141.2,414.79828]
[1723815992592,13.2975,141.34,141.21,65.0]
[1723815992895,13.2975,141.39,141.23,0.12549]
[1723815993102,13.2975,141.39,141.29,7.0776]
[1723815993103,7.34340521,141.38,141.29,7.0776]
[1723815993308,7.0746,141.35,141.3,7.0771]
[1723815993689,7.0746,141.35,141.29,7.0775]
[1723815993884,17.6855,141.36,141.26,382.4]
[1723815994098,7.0767,141.31,141.27,0.12549]
[1723815994281,7.0767,141.31,141.27,382.4]
[1723815994478,56.00650179,141.39,141.27,382.4]
[1723815994717,7.0782,141.28,141.24,17.6991]
[1723815994927,20.37647,141.38,141.23,389.4805]
[1723815994928,17.6925,141.31,141.23,382.4]
[1723815995081,7.0782,141.28,141.23,389.4801]
[1723815995276,7.0782,141.28,141.23,382.4]
[1723815995493,7.0792,141.26,141.23,382.4]
[1723815995997,7.0797,141.25,141.23,382.4]
[1723815996314,7.0792,141.26,141.23,382.4]
[1723815996643,0.25098,141.3,141.23,382.4]
[1723815996824,7.0797,141.25,141.23,382.4]
[1723815997514,7.0801,141.24,141.23,382.4]
[1723815997702,7.0797,141.25,141.23,382.4]
[1723815998638,12.6371,141.29,141.2,432.2519]
[1723815998837,7.079,141.27,141.22,7.0811]
[1723815999138,20.12549,141.26,141.2,432.2519]
[1723815999436,7.20549,141.25,141.2,439.334]
[1723815999620,0.12549,141.25,141.2,439.334]
[1723815999805,7.0802,141.24,141.2,432.2519]
[1723816000011,0.12549,141.25,141.18,382.4]
[1723816000229,7.0816,141.21,141.17,400.1087]
[1723816000431,0.12549,141.25,141.17,382.4]
[1723816000932,0.25098,141.25,141.17,382.4]
[1723816001099,7.0831,141.18,141.17,382.4]
[1723816001299,0.12549,141.24,141.14,17.7123]
[1723816001508,0.12549,141.23,141.17,17.709]
[1723816001720,31.9323,141.37,141.2,17.705]
[1723816001913,31.9323,141.37,141.2,400.105]
[1723816002116,7.0795,141.26,141.21,7.0815]
[1723816002311,7.0787,141.27,141.22,7.081]
[1723816002510,17.6903,141.32,141.23,7.0805]
[1723816002721,17.6903,141.32,141.22,24.7831]
[1723816003149,7.0787,141.27,141.22,24.7831]
[1723816003455,7.0787,141.27,141.23,7.0805]
[1723816003643,7.0792,141.26,141.22,17.7021]
[1723816003820,7.0792,141.26,141.2,382.4]
[1723816003821,7.0801,141.24,141.2,382.4]
[1723816004010,7.0802,141.24,141.2,382.4]
[1723816004215,0.12549,141.27,141.2,382.4]
[1723816004411,65.25098,141.27,141.2,382.4]
[1723816004613,7.0816,141.21,141.2,382.4]
[1723816004853,7.0824,141.2,141.16,400.11]
[1723816005029,7.0816,141.21,141.16,407.194]
[1723816006028,0.12549,141.22,141.16,400.11]
[1723816006234,17.6987,141.26,141.17,0.12549]
[1723816006448,0.12549,141.25,141.17,0.25098]
[1723816006746,7.0811,141.23,141.18,7.0831]
[1723816007125,45.12549,141.27,141.19,17.83139]
[1723816007328,0.12549,141.27,141.2,7.0817]
[1723816007850,7.0802,141.24,141.19,407.1884]
[1723816008053,7.0806,141.23,141.19,400.1059]
[1723816008261,7.0818,141.21,141.19,382.4]
[1723816008425,7.0818,141.21,141.16,400.1097]
[1723816008633,7.0812,141.22,141.17,7.0834]
[1723816009021,7.0807,141.23,141.16,400.1097]
[1723816009228,7.0812,141.22,141.18,7.083]
[1723816009544,7.0802,141.24,141.19,7.0825]
[1723816010254,7.0807,141.23,141.19,7.0825]
[1723816011050,0.12549,141.24,141.16,382.4]
[1723816011260,0.12549,141.24,141.13,31.3426]
[1723816011261,7.0843,141.16,141.13,31.3426]
[1723816011446,7.0843,141.16,141.09,13.137]
[1723816011676,7.0849,141.15,141.08,31.8422]
[1723816011963,0.25098,141.17,141.09,17.7188]
[1723816011964,7.0842,141.16,141.09,17.7188]
[1723816012333,0.12549,141.17,141.08,31.8422]
[1723816012571,20.0,141.19,141.13,17.7136]
[1723816012861,0.12549,141.18,141.12,7.0857]
[1723816013172,0.12549,141.14,141.08,31.8422]
[1723816013338,0.12549,141.14,141.07,17.721]
[1723816013544,7.0865,141.12,141.07,17.721]
[1723816013854,0.12549,141.14,141.07,17.721]
[1723816014058,7.0842,141.16,141.12,7.0861]
[1723816014260,7.0842,141.16,141.11,24.8026]
[1723816014758,7.0837,141.17,141.12,7.086]
[1723816014950,27.0841,141.16,141.12,7.086]
[1723816015157,7.0847,141.15,141.11,24.8027]
[1723816015464,27.0842,141.16,141.12,7.086]
[1723816015765,30.2689,141.24,141.16,7.0837]
[1723816016064,7.0827,141.19,141.15,24.7956]
[1723816016261,7.0827,141.19,141.15,17.711]
[1723816016448,7.0837,141.17,141.12,17.7146]
[1723816016763,7.0832,141.18,141.12,400.1146]
[1723816016941,17.704,141.22,141.12,400.1146]
[1723816017137,7.0835,141.18,141.13,7.0852]
[1723816017960,7.0835,141.18,141.14,7.0848]
[1723816018173,20.0,141.21,141.13,7.0855]
[1723816018350,7.0843,141.16,141.12,382.4]
[1723816018546,7.0856,141.13,141.12,382.4]
[1723816019076,7.0852,141.14,141.12,382.4]
[1723816019594,7.21019,141.15,141.12,382.4]
[1723816019880,7.21019,141.15,141.1,7.087]
[1723816020049,7.0852,141.14,141.1,7.087]
[1723816020253,0.12549,141.15,141.09,382.4]
[1723816020476,7.0861,141.12,141.09,382.4]
[1723816020771,7.0857,141.13,141.09,382.4]
[1723816020975,7.0861,141.12,141.09,382.4]
[1723816021274,13.35298,141.16,141.09,389.4875]
[1723816021479,13.35298,141.16,141.04,67.0819]
[1723816021480,0.12549,141.14,141.05,400.1236]
[1723816021767,7.0872,141.1,141.05,407.2131]
[1723816021954,0.12549,141.13,141.05,382.4]
[1723816021955,7.0881,141.08,141.05,382.4]
[1723816022156,17.84049,141.13,141.04,431.7569]
[1723816022372,7.21209,141.11,141.06,7.0888]
[1723816022539,20.0,141.15,141.06,17.7218]
[1723816022739,7.21099,141.14,141.09,7.0872]
[1723816022944,20.1866,141.16,141.1,7.0871]
[1723816023168,20.1866,141.16,141.11,7.0865]
[1723816023169,7.0846,141.16,141.11,7.0865]
[1723816023356,7.085,141.15,141.1,7.0871]
[1723816023556,7.085,141.15,141.08,17.7195]
[1723816023557,17.7069,141.19,141.08,17.7195]
[1723816023764,17.7069,141.19,141.1,17.7171]
[1723816023957,7.0842,141.16,141.11,7.0862]
[1723816024159,17.7069,141.19,141.11,7.0862]
[1723816024160,13.1745,141.24,141.12,32.05568]
[1723816024347,13.1745,141.24,141.16,17.7097]
[1723816024553,13.1745,141.24,141.13,0.12549]
[1723816024554,43.6723,141.28,141.2,7.0821]
[1723816024752,30.5598,141.28,141.2,7.0821]
[1723816024977,7.0801,141.24,141.19,7.0825]
[1723816025158,7.0809,141.23,141.18,24.7902]
[1723816025362,7.0802,141.24,141.18,17.7072]
[1723816025574,7.0797,141.25,141.19,7.0822]
[1723816025790,30.5598,141.28,141.2,17.7045]
[1723816025791,7.0789,141.27,141.2,17.7045]
[1723816026104,12.8639,141.28,141.2,24.7862]
[1723816026247,7.08,141.25,141.2,24.7862]
[1723816026442,7.08,141.25,141.21,1.41485186]
[1723816026677,7.08,141.25,141.2,24.7862]
[1723816026867,12.8639,141.28,141.19,7.0826]
[1723816027062,7.0803,141.24,141.19,7.0826]
[1723816027279,7.0808,141.23,141.18,7.0829]
[1723816027659,7.0811,141.22,141.17,407.1922]
[1723816027851,7.0807,141.23,141.17,400.1087]
[1723816028074,7.08,141.25,141.2,7.0817]
[1723816028382,7.0791,141.26,141.21,8.49554522]
[1723816028555,27.0796,141.25,141.2,7.0821]
[1723816028758,7.0801,141.24,141.19,17.7057]
[1723816029079,7.0801,141.24,141.17,382.4]
[1723816029080,7.083,141.19,141.17,382.4]
[1723816029283,17.7024,141.23,141.17,382.4]
[1723816029483,20.12549,141.22,141.17,382.4]
[1723816029800,7.083,141.19,141.17,382.4]
[1723816029988,7.0831,141.18,141.17,382.4]
[1723816030200,0.12549,141.18,141.1,17.7177]
[1723816030353,62.7049,141.21,141.1,17.7177]
[1723816030354,7.0856,141.14,141.1,17.7177]
[1723816030561,7.0856,141.14,141.1,400.1177]
[1723816030857,0.12549,141.15,141.1,382.4]
[1723816031180,7.0867,141.11,141.07,7.0886]
[1723816031698,65.12549,141.16,141.1,7.087]
[1723816031855,0.12549,141.15,141.08,17.7197]
[1723816032054,53.1169,141.2,141.06,415.1439]
[1723816032055,0.12549,141.17,141.06,415.1439]
[1723816032254,0.12549,141.14,141.06,415.1439]
[1723816032501,7.0867,141.11,141.06,422.2329]
[1723816032650,7.0874,141.1,141.06,382.4]
[1723816033058,7.0867,141.11,141.06,389.489]
[1723816033256,7.0872,141.1,141.06,382.4]
[1723816033487,0.12549,141.12,141.06,389.4891]
[1723816033790,7.0867,141.11,141.06,389.4891]
[1723816033964,7.21299,141.1,141.06,382.4]
[1723816034165,7.21199,141.12,141.06,382.4]
[1723816034377,27.0869,141.11,141.06,389.4891]
[1723816034563,7.21269,141.1,141.06,389.4891]
[1723816034781,7.0876,141.09,141.05,400.1235]
[1723816034983,7.21269,141.1,141.05,400.1235]
[1723816035184,20.0,141.11,141.05,400.1235]
[1723816035390,7.0855,141.14,141.09,7.0872]
[1723816035572,7.0855,141.14,141.07,17.7208]
[1723816035573,7.0857,141.13,141.08,7.088]
[1723816035892,17.7122,141.15,141.05,382.4]
[1723816036079,17.7148,141.13,141.05,389.4896]
[1723816036393,7.0873,141.1,141.05,389.4896]
[1723816036604,7.0873,141.1,141.06,7.089]
[1723816036806,7.0873,141.1,141.05,389.4895]
[1723816037395,0.12549,141.09,141.05,382.4]
[1723816037570,7.0878,141.09,141.05,382.4]
[1723816037965,7.0872,141.1,141.05,389.4895]
[1723816038293,7.0878,141.09,141.05,382.4]
[1723816038671,7.0887,141.07,141.05,382.4]
[1723816038984,7.0891,141.06,141.05,382.4]
[1723816039307,7.0891,141.06,141.02,389.4907]
[1723816039503,7.0891,141.06,141.01,49.9864]
[1723816039504,7.0897,141.05,141.01,17.7286]
[1723816039688,7.0893,141.06,141.01,24.8202]
[1723816040009,7.33978,141.07,141.02,7.0911]
[1723816040306,7.0893,141.06,141.02,7.0911]
[1723816040998,7.0897,141.05,141.01,24.8202]
[1723816041187,7.0897,141.05,141.0,383.2698536]
[1723816041188,0.25098,141.06,141.0,383.2698536]
[1723816041517,0.12549,141.06,141.0,383.2698536]
[1723816041812,7.0916,141.01,141.0,383.2698536]
[1723816042189,7.0913,141.02,141.0,383.2698536]
[1723816042386,7.21709,141.01,141.0,383.2698536]
[1723816042596,7.0916,141.01,141.0,0.8698536]
[1723816042807,0.12549,141.06,141.0,0.8698536]
[1723816042979,7.0907,141.03,141.0,0.8698536]
[1723816043304,7.0913,141.02,141.0,0.8698536]
[1723816043508,7.0908,141.03,141.0,0.8698536]
[1723816043714,0.12549,141.05,141.0,0.8698536]
[1723816044011,7.0911,141.03,141.0,0.8698536]
[1723816044379,7.0903,141.04,141.0,0.8698536]
[1723816044578,7.09,141.05,141.0,390.3619536]
[1723816044781,7.0893,141.06,141.01,7.0915]
[1723816045116,7.0897,141.05,141.0,390.3619536]
[1723816045613,7.0907,141.03,141.0,383.2698536]
[1723816045788,0.12549,141.06,141.0,383.2698536]
[1723816045985,7.0915,141.02,141.0,383.2698536]
[1723816046186,7.21709,141.01,141.0,0.8698536]
[1723816046503,27.34258,141.01,141.0,0.8698536]
[1723816046676,85.55676,141.01,141.0,5.36e-05]
[1723816047987,121.01516,141.01,141.0,5.36e-05]
[1723816048485,151.01516,141.01,141.0,5.36e-05]
[1723816048803,7.096,140.93,140.89,382.4]
[1723816048984,7.096,140.93,140.89,7.0976]